Cogmind - Beta 16 @@@ ROGUE MODE // 2026.01.23 @ 22:48:48 Player: Bt-7274 Result: Destroyed by as-32652 with Assembled Blade Performance ------------- Evolutions (0) 0 Regions Visited (2) 400 Robots Destroyed (10) 50 Value Destroyed (87) 87 Prototype IDs (0) 0 Alien Tech Used (0) 0 Bonus (0) 0 TOTAL SCORE: 537 Bonus ------- None Cogmind --------- Core Integrity 0/250 Matter 299/300 Energy 100/100 System Corruption 2% Temperature Warm (119) Movement Core (50) Location -10/Mines Parts ------- > --- POWER (1) -------- (None) > --- PROPULSION (2) --- (None) > --- UTILITY (2) ------ (None) > --- WEAPON (2) ------- (None) > --- INVENTORY (5) ---- Seismic Detector Medium Laser Small Laser Assault Rifle Plasma Cutter Peak State ------------ > --- POWER ------------ Improved Ion Engine > --- PROPULSION ------- Aluminum Leg Aluminum Leg > --- UTILITY ---------- Small Storage Unit Seismic Detector > --- WEAPON ----------- Heavy EM Pulse Gun Heavy EM Pulse Gun > --- INVENTORY -------- Improved Ion Engine Improved Terrain Scanner Seismic Detector Heavy EM Pulse Gun Medium Laser Small Laser Assault Rifle Plasma Cutter [Rating: 11] Favorites ----------- Power Improved Ion Engine Engine Improved Ion Engine Propulsion Aluminum Leg Leg Aluminum Leg Utility Small Storage Unit Device Seismic Detector Storage Small Storage Unit Weapon Medium Laser Energy Gun Medium Laser Build | -11 -10 -10 ------- Run | Yrd Mat Min Slots Evolved . | . . . Power . | . . . Propulsion . | . . . Utility . | . . . Weapon . | . . . Parts Attached 10 | 7 1 2 Power 2 | 1 1 . Engine 2 | 1 1 . Core . | . . . Reactor . | . . . Propulsion 2 | 2 . . Treads . | . . . Leg 2 | 2 . . Wheel . | . . . Hover . | . . . Flight . | . . . Utility 2 | 2 . . Device 1 | 1 . . Storage 1 | 1 . . Processor . | . . . Hackware . | . . . Protection . | . . . Artifact . | . . . Weapon 4 | 2 . 2 Energy Gun 4 | 2 . 2 Energy Cannon . | . . . Ballistic Gun . | . . . Ballistic Cannon . | . . . Launcher . | . . . Special Weapon . | . . . Impact Weapon . | . . . Slashing Weapon . | . . . Piercing Weapon . | . . . Special Melee Weapon . | . . . Unidentified Prototypes . | . . . Parts Lost 1 | . . 1 Power . | . . . Propulsion . | . . . Utility . | . . . Weapon 1 | . . 1 Highest Loss Streak 1 | . . 1 To Critical Strikes . | . . . Average Backups 5 | 2 6 8 Power . | . 1 1 Propulsion . | . . . Utility 1 | . 2 2 Weapon 2 | . 3 4 Tool/Special . | . . . Unused Backups 7 | . 1 6 Power 2 | . 1 1 Propulsion . | . . . Utility 2 | . . 2 Weapon 2 | . . 2 Tool/Special 1 | . . 1 Average Slot Usage (%) 96 | . 100 75 Engine 13 | . 14 10 Leg 26 | . 28 21 Device 13 | . 14 10 Storage 13 | . 14 10 Energy Gun 26 | . 28 21 Peak Build Rating 11 | 7 9 11 Average Rating 7 | 5 8 8 On Entrance 5 | . 7 9 Avg Prop Armor Cover (%) . | . . . Naked Turns 4 | . . 4 Heaviest Build 19 | 14 16 19 Greatest Support 20 | 20 20 20 Greatest Overweight (x) . | . . . Average Overweight (x) . | . . . Largest Inventory Capacity 8 | 8 8 8 Average Capacity 7 | 7 8 7 Most Carried 8 | 4 8 8 Average Carried 5 | 1 6 7 Final Capacity 8 | 8 8 5 Final Carried 8 | 4 8 5 Class Distribution -------------------- 100% | Mutant Dominant Class ---------------- Mutant | -10/Materials Mutant | -10/Mines Resources | -11 -10 -10 ----------- Run | Yrd Mat Min Matter Collected 280 | 270 10 . Remotely . | . . . Salvage Created 271 | 149 102 20 Parts 19 | 8 11 . Haulers Intercepted . | . . . Recyclers Shooed . | . . . Parts Field Recycled . | . . . Retrieved Matter . | . . . Parts Self-Destructed . | . . . Prevented . | . . . Parts Restored . | . . . Kills | -11 -10 -10 ------- Run | Yrd Mat Min Combat Hostiles Destroyed 7 | . 6 1 Guns 7 | . 6 1 Classes Destroyed 4 | 2 1 1 Tunneler 3 | 3 . . Recycler 1 | 1 . . Swarmer 6 | . 6 . Assembled 1 | . . 1 Best Kill Streak 4 | 4 3 1 Combat Bots Only 3 | . 3 1 Max Kills in Single Turn 1 | 1 1 1 Gunslinging . | . . . Exploded . | . . . Melee . | . . . Uniques/NPCs Destroyed . | . . . Combat | -11 -10 -10 -------- Run | Yrd Mat Min Hostile Shots Fired 71 | . 37 34 Missed 24 | . 12 12 Hits 47 | . 25 22 Melee 6 | . . 6 Projectile 41 | . 25 16 Critical Strikes 1 | . . 1 Damage Taken 599 | . 200 399 Core 257 | . 39 218 Absorbed by Shields . | . . . Core Remaining (%) 100 | 100 . . Volleys Fired 26 | 7 16 3 Largest 2 | 2 2 2 Hottest 90 | 90 90 90 Shots Fired 45 | 14 25 6 Gun 45 | 14 25 6 Cannon . | . . . Launcher . | . . . Special . | . . . Kinetic . | . . . Thermal 39 | 14 25 . Explosive . | . . . Electromagnetic 6 | . . 6 Robot Hit Streak 4 | 4 4 4 Robot Miss Streak 3 | 2 3 1 Penetration Max . | . . . Secondary Targets 1 | . 1 . Max Gunslinging Chain 1 | . 1 . Shots Hit Robots 24 | 8 11 5 Core Hits 15 | 5 6 4 Critical Kills . | . . . Critical Parts Destroyed . | . . . Critical Strikes . | . . . Melee Attacks . | . . . Impact . | . . . Slashing . | . . . Piercing . | . . . Sneak Attacks . | . . . Combat Hostiles . | . . . Follow-up Attacks . | . . . Damage Inflicted 333 | 94 144 95 Guns 318 | 94 144 80 Cannons . | . . . Explosions . | . . . Melee . | . . . Ramming 15 | . . 15 Kinetic . | . . . Thermal 238 | 94 144 . Explosive . | . . . Electromagnetic 80 | . . 80 Impact . | . . . Slashing . | . . . Piercing . | . . . Highest Corruption 2 | . . 2 Average Corruption 2 | . . 2 Corruption Purged . | . . . Corruption Blocked . | . . . Overload Shots . | . . . Overflow Damage . | . . . Projectiles . | . . . Explosions . | . . . Melee . | . . . Knockbacks . | . . . Impact . | . . . Kinetic . | . . . Secondary . | . . . Self-Inflicted Damage 6 | . . 6 Shots . | . . . Rammed 4 | . . 4 Targets Rammed 4 | . . 4 Kicked . | . . . Crushed . | . . . Highest Temperature 149 | 90 122 149 Average Temperature 57 | 35 62 87 Received Heat Transfer 120 | . . 120 Siege Activations . | . . . Martial Activations . | . . . Shielding Activations . | . . . Robots Disrupted . | . . . Combat Hostiles . | . . . Robots Corrupted . | . . . Combat Hostiles . | . . . Parts Fried . | . . . Impact Corruptions . | . . . Robots Melted . | . . . Combat Hostiles . | . . . Parts Melted 2 | . 2 . Heat Transferred 656 | 260 396 . Parts Sabotaged . | . . . Parts Stolen . | . . . Parts Stripped . | . . . Power Chain Reactions . | . . . Alert | -11 -10 -10 ------- Run | Yrd Mat Min Maximum Alert Level . | . . . Low Security (%) 100 | 100 100 100 Level 1 . | . . . Level 2 . | . . . Level 3 . | . . . Level 4 . | . . . Level 5 . | . . . High Security . | . . . Max Security . | . . . Peak Influence 80 | 10 80 15 Initial 15 | . . 15 Average 33 | 2 50 10 Influence Increases 150 | 20 130 . Destroy 0b10 Robot/C 120 | . 120 . Destroy 0b10 Robot/NC 20 | 20 . . Destroy Leader 10 | . 10 . Influence Decreases 150 | 20 90 40 Entered New Map 25 | . . 25 Time Decay 120 | 20 90 10 Lost Part 5 | . . 5 Squads Dispatched . | . . . Investigation . | . . . Extermination . | . . . Reinforcement . | . . . Assault . | . . . Garrison . | . . . Intercept . | . . . Searches Triggered . | . . . Construction Impeded . | . . . Haulers Reinforced . | . . . Active Scanning Responses . | . . . Cargo Convoy Interrupts . | . . . Stealth | -11 -10 -10 --------- Run | Yrd Mat Min Distress Signals . | . . . Communications Jammed . | . . . Distress Signals . | . . . Times Spotted 24 | . 7 17 Peak Tracking Total 17 | . 3 17 Tactical Retreats . | . . . Traps | -11 -10 -10 ------- Run | Yrd Mat Min Traps Triggered . | . . . Indirectly . | . . . Trap Hack Attempts . | . . . Triggered . | . . . Disarmed . | . . . Reprogrammed . | . . . Reused . | . . . Traps Extracted . | . . . Installed . | . . . Triggered . | . . . Machines | -11 -10 -10 ---------- Run | Yrd Mat Min Machines Disabled . | . . . Max in Single Turn . | . . . Machines Repaired . | . . . Machines Dismantled . | . . . Machines Sabotaged . | . . . Overloaded Fab Kills . | . . . Hacking | -11 -10 -10 --------- Run | Yrd Mat Min Machines Accessed . | . . . Terminals . | . . . Fabricators . | . . . Repair Stations . | . . . Recycling Units . | . . . Scanalyzers . | . . . Garrison Access . | . . . Total Hacks . | . . . Successful . | . . . Failed . | . . . Catastrophic . | . . . Database Lockouts . | . . . Manual . | . . . Terminals . | . . . Fabricators . | . . . Repair Stations . | . . . Recycling Units . | . . . Scanalyzers . | . . . Garrison Access . | . . . Terminal Hacks . | . . . Fabricator Hacks . | . . . Repair Station Hacks . | . . . Recycling Unit Hacks . | . . . Scanalyzer . | . . . Garrison Access Hacks . | . . . Unauthorized Hacks . | . . . Terminals . | . . . Fabricators . | . . . Repair Stations . | . . . Recycling Units . | . . . Scanalyzers . | . . . Garrison Access . | . . . Data Cores Recovered . | . . . Used . | . . . Hacking Detections . | . . . Full Trace Events . | . . . Feedback Events . | . . . Feedback Blocked . | . . . Robot Schematics Acquired . | . . . Robots Built . | . . . Authchips . | . . . Time . | . . . Total Robot Build Rating . | . . . Part Schematics Acquired . | . . . Parts Built . | . . . Authchips . | . . . Time . | . . . Total Part Build Rating . | . . . Part Studies Acquired . | . . . Parts Repaired . | . . . Time . | . . . Parts Recycled . | . . . Recycled Matter . | . . . Retrieved Matter . | . . . Retrieved Components . | . . . Parts Scanalyzed . | . . . Part Schematics Acquired . | . . . Parts Damaged . | . . . Bothacking | -11 -10 -10 ------------ Run | Yrd Mat Min Used RIF Installer . | . . . Robots Hacked . | . . . Non-combat . | . . . Combat . | . . . Robot Hacks Applied . | . . . Relay Couplers Released . | . . . Fabnet Peak Effective % . | . . . Robots Rewired . | . . . Allies Hacked . | . . . Hacks Repelled . | . . . Allies | -11 -10 -10 -------- Run | Yrd Mat Min Total Allies . | . . . Largest Group . | . . . Highest-Rated Group . | . . . Highest-Rated Ally . | . . . Total Orders . | . . . Ally Attacks . | . . . Total Damage . | . . . Kills . | . . . Allies Corrupted . | . . . Allies Melted . | . . . Intel | -11 -10 -10 ------- Run | Yrd Mat Min Active Infowar (turns) 254 | 23 202 29 Seismic 254 | 23 202 29 Robot Analysis Total . | . . . Derelict Logs Recovered . | . . . Drone Launches . | . . . Drone Recoveries . | . . . Exploration | -11 -10 -10 ------------- Run | Yrd Mat Min Turns Passed 322 | 87 202 33 Spaces Moved 175 | 46 115 14 Core 5 | 5 . . Treads . | . . . Legs 170 | 41 115 14 Wheels . | . . . Hover . | . . . Flight . | . . . Fastest Speed 50 | 50 120 120 Average Speed 118 | 112 120 120 Slowest Speed 120 | 120 120 120 Overloaded Moves . | . . . Propulsion Burnouts . | . . . Robots Hopped . | . . . Potential Cave-ins . | . . . Cave-ins Triggered . | . . . Exploration Rate (%) 10 | 4 19 7 Regions Visited 2 Branch Regions 1 Pre-discovered Areas 1 | . . 1 Known Exits Taken . | . . . Unknown Exits Taken 2 | 1 1 . Scrap Searched . | . . . Spaces Dug . | . . . Terrain Destroyed . | . . . Melee . | . . . Projectile . | . . . AOE . | . . . Terrain Rammed . | . . . Walls Destroyed . | . . . Machines Disabled . | . . . Actions | -11 -10 -10 --------- Run | Yrd Mat Min Total 242 | 63 156 23 Wait 18 | . 18 . Move 173 | 45 114 14 Hop . | . . . Pick Up 9 | 4 5 . Fast Attach 7 | 7 . . Attach . | . . . Detach . | . . . Swap 3 | . 1 2 Drop 2 | . 2 . Fire 26 | 7 16 3 Melee . | . . . Ram 4 | . . 4 Kick . | . . . Crush . | . . . Escape Stasis . | . . . Rewire . | . . . Trap . | . . . Miscellaneous . | . . . Route ------- -11/Scrapyard -10/Materials -10/Mines History --------- Turn | Location | Event 11 | -11/Scrapyard | Discovered new exit (range 15) 88 | -11/Scrapyard | Entered Materials 201 | -10/Materials | Discovered new exit (range 14) 290 | -10/Materials | Entered Mines 291 | -10/Mines | Learned location of Storage (-9) 291 | -10/Mines | Assembled infested the area 296 | -10/Mines | Assisted by a Guerilla fighting off Assembled 319 | -10/Mines | Released all parts (6) 321 | -10/Mines | Core integrity fell below 50% 323 | -10/Mines | Core integrity fell below 20% 323 | -10/Mines | Destroyed by as-32652 with Assembled Blade Last Messages --------------- come on!" 00305_ RD-E6M(h): "I'll hold them off! Go on ahead or try to find another way!" 00307_ HV Slug penetrates Wall. 00310_ RD-E6M(h) system corrupted by crushing effect. 00311_ RD-E6M(h) heat spikes uncontrollably. 00311_ RD-E6M(h) destroyed. 00316_ as-84843 destroyed. 00318_ Hvy. EM Pulse Gun destroyed. 00319_ Released Imp. Ion Engine. 00319_ Released Sml. Storage Unit. 00319_ Released Aluminum Leg. 00319_ Released Seismic Detector. 00319_ Released Hvy. EM Pulse Gun. [Achievement: Live, Flee, And Rebuild] 00319_ Slammed into as-76535. 00320_ Slammed into as-29980. 00321_ Destabilizing: System corrupted (+2). 00322_ Slammed into as-29980. Map ----- +----------------------------------------------------+ | ?????????????????????????????????????????????????? | | ?????????????????????????????????????????????????? | | ?????????????????????????????????????????????????? | | ?????????????????????????????????????????????????? | | ?????????????????????????????????????????????????? | | ?????????????????????????????????????????????????? | | ?????????????????????????????????????????????????? | | ?????????????????????????????????????????????????? | | ?????????????????????????????????????????????????? | | ?????????????????????????????????????????????????? | | ?????????????????????????????????????????????????? | | ????????????????????? ??????????????????????????? | | ????????????????????? #??##?????????????????????? | | ????????????????????? ## "????????????????????? | | ????????????????????? < ????????????????????? | | ?????????????????????? #????????????????????? | | ?????????????????????? #????????????????????? | | ?????????????????????? #????????????????????? | | ??????????????????????# #????????????????????? | | ??????????????????????? ?????????????????????? | | ??????????????????????? a #?????????????????????? | | ????????????#####?????##a a##????????????????????? | | ???????????## ###???#;a #;?????????????????????? | | ???????????# ###?#;a a###???????????????????? | | ???????????# ####aaa $????????????????????? | | ??????????## ##[a@#??????????????????????? | | ??????????# =aaa#??????????????????????? | | ?????????# ### *aa[#??????????????????????? | | ????????# ##?###########??????????????????????? | | ????????# #????????????????????????????????????? | | ????????####?????????????????????????????????????? | | ?????????????????????????????????????????????????? | | ?????????????????????????????????????????????????? | | ?????????????????????????????????????????????????? | | ?????????????????????????????????????????????????? | | ?????????????????????????????????????????????????? | | ?????????????????????????????????????????????????? | | ?????????????????????????????????????????????????? | | ?????????????????????????????????????????????????? | | ?????????????????????????????????????????????????? | | ?????????????????????????????????????????????????? | | ?????????????????????????????????????????????????? | | | | | | | | | | | | | | | | | +----------------------------------------------------+ Best States ------------- Heat Dissipation 25 Energy Generation 12 Energy Capacity 265 Matter Stores 300 Matter Capacity 300 Sight Range 16 Terrain Scan Density 10 Evasion (%) 55 Item Schematics ----------------- None Robot Schematics ------------------ None Fabricated ------------ Nothing Repaired ---------- Nothing Studied --------- None Alien Tech Used ----------------- None Achievements -------------- Live, Flee, And Rebuild Challenges ------------ None Game ------ Seed ZipOpticalPod Manual? 0 Play Time 00:06:44 Cumulative 60.1 hours Start 2026.01.23 @ 22:42:18 End 2026.01.23 @ 22:48:48 Sessions 1 Manual Loads 0 Difficulty Rogue Special Mode None Game No. 73 Rogue 73 Adventurer 0 Explorer 0 Win Type - Total 1 Types 1/0/0/0/0/0/0/0/0/0 Lore% 35 Gallery% 46 Achievement% 30 Wizard Run 0 Options --------- Layout 1 ASCII 0 Keyboard 0 Movement Numpad Keybinds 0 Fullscreen 1 Font 32/SmallcapsGlow Map View 50x35 Zoom Use 0% Tactical HUD 1 Map Filters NONE Filters NONE Steam 1 RUN: e4ff12ee-9e2c-4ad4-bcc7-5f2fbfc68ee0